bitfinex/quotes_BTCUSD_20241018
["timestamp","ask_amount","ask_price","bid_price","bid_amount"]
[1729236906301,0.67543486,68072.0,68071.0,0.002528]
[1729236906538,0.41565806,68072.0,68071.0,0.002528]
[1729236906777,0.165559,68072.0,68071.0,0.007528]
[1729236907024,0.165559,68072.0,68071.0,0.01987563]
[1729236907025,0.018656,68072.0,68071.0,0.01987563]
[1729236907276,0.018656,68072.0,68071.0,0.06432098]
[1729236907277,0.165559,68072.0,68071.0,0.06432098]
[1729236908027,0.265559,68072.0,68071.0,0.06432098]
[1729236908987,0.265559,68072.0,68071.0,0.15092098]
[1729236908988,0.009656,68072.0,68071.0,0.15092098]
[1729236909241,0.001656,68072.0,68071.0,0.14992098]
[1729236909493,0.148559,68072.0,68071.0,0.14992098]
[1729236909732,0.010656,68072.0,68071.0,0.15092098]
[1729236910031,0.007656,68072.0,68071.0,0.15092098]
[1729236910261,0.001656,68072.0,68071.0,0.46808073]
[1729236910497,0.001656,68072.0,68071.0,0.71980217]
[1729236910755,0.001696,68074.0,68073.0,0.176901]
[1729236910987,0.001696,68074.0,68073.0,0.55869051]
[1729236911249,0.001696,68074.0,68073.0,0.74607017]
[1729236911514,0.00166,68077.0,68076.0,0.51731104]
[1729236911779,0.00166,68077.0,68076.0,0.72306317]
[1729236912003,0.00166,68077.0,68076.0,0.91138021]
[1729236912557,0.00166,68077.0,68076.0,0.91122731]
[1729236912805,0.21942817,68098.0,68090.0,0.49538104]
[1729236913018,0.21942817,68098.0,68090.0,0.34851704]
[1729236913262,0.21942817,68098.0,68090.0,0.23977404]
[1729236913514,0.21942817,68098.0,68090.0,0.38663804]
[1729236913515,0.001658,68091.0,68090.0,0.38663804]
[1729236913759,0.001658,68091.0,68090.0,0.23977404]
[1729236914224,0.002658,68091.0,68090.0,0.25277404]
[1729236914457,0.002658,68091.0,68090.0,0.25272295]
[1729236914688,0.002658,68091.0,68090.0,0.22814759]
[1729236915431,0.002658,68091.0,68090.0,0.24114759]
[1729236915432,0.003658,68091.0,68090.0,0.24114759]
[1729236916657,0.003658,68091.0,68090.0,0.13098747]
[1729236916883,0.15052,68091.0,68090.0,0.05328747]
[1729236917351,0.003658,68091.0,68090.0,0.05328747]
[1729236917854,0.003658,68091.0,68090.0,0.36546851]
[1729236917857,0.003658,68091.0,68090.0,0.3850991]
[1729236918109,0.003658,68091.0,68090.0,0.72175825]
[1729236918352,0.003658,68091.0,68090.0,0.74633361]
[1729236919769,0.002658,68091.0,68090.0,0.55001657]
[1729236919988,0.001658,68091.0,68090.0,0.55001657]
[1729236920445,0.002658,68091.0,68090.0,0.57201657]
[1729236920469,0.001658,68091.0,68090.0,0.54444121]
[1729236920689,0.001658,68091.0,68090.0,0.52544121]
[1729236920953,0.002658,68091.0,68090.0,0.53844121]
[1729236921200,0.001658,68091.0,68090.0,0.53944121]
[1729236921745,0.001658,68091.0,68090.0,0.52544121]
[1729236921964,0.001658,68091.0,68090.0,0.14201806]
[1729236922197,0.001658,68091.0,68090.0,0.06091806]
[1729236922427,0.001658,68091.0,68090.0,0.05091806]
[1729236922428,0.14852,68091.0,68090.0,0.05091806]
[1729236922654,0.24852,68091.0,68090.0,0.04528747]
[1729236922893,0.24852,68091.0,68090.0,0.04028747]
[1729236923102,0.101658,68091.0,68088.0,0.005]
[1729236923341,0.246866,68089.0,68088.0,0.005]
[1729236924723,0.246866,68089.0,68088.0,0.006]
[1729236925468,0.39582515,68089.0,68088.0,0.001]
[1729236925700,0.58725345,68089.0,68088.0,0.001]
[1729236925959,0.14689,68078.0,68077.0,0.005]
[1729236926207,0.60598104,68079.0,68077.0,0.01225991]
[1729236926466,0.45909304,68079.0,68078.0,0.01725991]
[1729236926713,0.60598104,68079.0,68078.0,0.005]
[1729236927450,0.60598104,68079.0,68078.0,0.01726966]
[1729236927700,0.146888,68079.0,68078.0,0.01726966]
[1729236927959,0.31220504,68079.0,68078.0,0.01726966]
[1729236928200,0.146888,68079.0,68078.0,0.01726966]
[1729236928659,0.146888,68079.0,68078.0,0.01226966]
[1729236929092,0.246881,68082.0,68081.0,0.005]
[1729236929317,0.39584015,68082.0,68081.0,0.005]
[1729236929526,0.20853314,68085.0,68081.0,0.005]
[1729236929742,0.146881,68082.0,68081.0,0.005]
[1729236929957,0.31427619,68085.0,68079.0,0.005]
[1729236930168,0.146888,68079.0,68078.0,0.016]
[1729236930387,0.146891,68078.0,68076.0,0.005]
[1729236930598,0.146891,68078.0,68077.0,0.0122817]
[1729236930803,0.31220004,68081.0,68080.0,0.005]
[1729236931009,0.16531704,68081.0,68080.0,0.0172817]
[1729236931678,0.1,68083.0,68080.0,0.0172817]
[1729236932077,0.293759,68083.0,68080.0,0.0172817]
[1729236932115,0.146881,68082.0,68081.0,0.0172817]
[1729236932802,0.293755,68084.0,68081.0,0.0172817]
[1729236932803,0.246879,68084.0,68081.0,0.0172817]
[1729236933079,0.246881,68083.0,68082.0,0.0122817]
[1729236934479,0.248881,68083.0,68082.0,0.0122817]
[1729236934702,0.246881,68083.0,68082.0,0.0122817]
[1729236934929,0.248881,68083.0,68082.0,0.0132817]
[1729236935176,0.251881,68083.0,68082.0,0.0142817]
[1729236935402,0.249881,68083.0,68082.0,0.0132817]
[1729236935625,0.251881,68083.0,68082.0,0.0142817]
[1729236935848,0.249881,68083.0,68082.0,0.0132817]
[1729236936308,0.248881,68083.0,68082.0,0.0132817]
[1729236936540,0.251881,68083.0,68082.0,0.0142817]
[1729236936807,0.251879,68083.0,68082.0,0.0142817]
[1729236937048,0.102,68083.0,68082.0,0.03797019]
[1729236937346,0.002,68083.0,68082.0,0.0282817]
[1729236937541,0.003,68083.0,68082.0,0.0479931]
[1729236938004,0.002,68083.0,68082.0,0.05848779]
[1729236938249,0.001656,68089.0,68088.0,0.01]
[1729236938467,0.001656,68089.0,68088.0,0.0419931]
[1729236938727,0.001656,68089.0,68088.0,0.05748824]
[1729236938936,0.001656,68089.0,68088.0,0.13378824]
[1729236939424,0.001656,68089.0,68088.0,0.30526661]
[1729236939669,0.001656,68089.0,68088.0,0.3052687]
[1729236939888,0.001656,68089.0,68088.0,0.32577761]
[1729236940132,0.001656,68089.0,68088.0,0.3052687]
[1729236940692,0.001656,68089.0,68088.0,0.1584007]
[1729236940788,0.001656,68089.0,68088.0,0.0821007]
[1729236940789,0.003656,68089.0,68088.0,0.0821007]
[1729236941029,0.150522,68089.0,68088.0,0.0821007]
[1729236941268,0.148522,68089.0,68088.0,0.0821007]
[1729236941496,0.004656,68089.0,68088.0,0.0821007]
[1729236941726,0.003656,68089.0,68088.0,0.0821007]
[1729236942182,0.152522,68089.0,68088.0,0.0821007]
[1729236942408,0.150522,68089.0,68088.0,0.0821007]
[1729236942906,0.57358115,68089.0,68088.0,0.01230497]
[1729236943136,0.73889819,68089.0,68088.0,0.01230497]
[1729236943343,0.74189819,68089.0,68088.0,0.01230497]
[1729236943772,0.73889819,68089.0,68088.0,0.01230497]
[1729236943998,0.73789819,68089.0,68088.0,0.01230497]
[1729236944439,0.74089819,68089.0,68088.0,0.01330497]
[1729236945078,0.74389819,68089.0,68088.0,0.01430497]
[1729236945288,0.74089819,68089.0,68088.0,0.01330497]
[1729236945926,0.74089819,68089.0,68088.0,0.01430497]
[1729236945927,0.74389819,68089.0,68088.0,0.01430497]
[1729236946136,0.74789819,68089.0,68088.0,0.01530497]
[1729236946353,0.74789819,68089.0,68088.0,0.003]
[1729236946584,0.74089819,68089.0,68088.0,0.001]
[1729236947040,0.74689819,68089.0,68088.0,0.002]
[1729236947478,0.74089819,68089.0,68088.0,0.001]
[1729236947701,0.246881,68082.0,68081.0,0.005]
[1729236947947,0.246881,68082.0,68081.0,0.0370165]
[1729236948454,0.246881,68082.0,68081.0,0.01731397]
[1729236948667,0.246881,68082.0,68081.0,0.03702274]
[1729236949326,0.250881,68082.0,68081.0,0.03702274]
[1729236949551,0.250881,68082.0,68081.0,0.03802274]
[1729236949552,0.254881,68082.0,68081.0,0.03802274]
[1729236949966,0.40384015,68082.0,68081.0,0.03802274]
[1729236950392,0.40384015,68082.0,68081.0,0.01831397]
[1729236950630,0.40384015,68082.0,68081.0,0.03804225]
[1729236950868,0.254881,68082.0,68081.0,0.03804225]
[1729236951208,0.254881,68082.0,68081.0,0.006]
[1729236951313,0.254881,68082.0,68081.0,0.03805832]
[1729236951533,0.40384015,68082.0,68081.0,0.03805832]
[1729236952260,0.39984015,68082.0,68081.0,0.03705832]
[1729236952486,0.39984015,68082.0,68081.0,0.03788632]
[1729236952696,0.40384015,68082.0,68081.0,0.03788632]
[1729236953130,0.39984015,68082.0,68081.0,0.03788632]
[1729236953370,0.40384015,68082.0,68081.0,0.03888632]
[1729236953828,0.39984015,68082.0,68081.0,0.03788632]
[1729236954555,0.39584015,68082.0,68081.0,0.03788632]
[1729236954801,0.39984015,68082.0,68081.0,0.03788632]
[1729236955053,0.253881,68082.0,68081.0,0.03790578]
[1729236955265,0.250881,68082.0,68081.0,0.03790578]
[1729236955728,0.250881,68082.0,68081.0,0.31176244]
[1729236955729,0.004,68082.0,68081.0,0.31176244]
[1729236956022,0.007,68082.0,68081.0,0.31176244]
[1729236956252,0.001656,68085.0,68081.0,0.31176244]
[1729236956253,0.148531,68085.0,68084.0,0.01]
[1729236956498,0.148531,68085.0,68084.0,0.071754]
[1729236956499,0.001656,68085.0,68084.0,0.071754]
[1729236956740,0.001656,68085.0,68084.0,0.22918808]
[1729236957201,0.001656,68085.0,68084.0,0.08231108]
[1729236958191,0.001656,68085.0,68084.0,0.32568808]
[1729236958444,0.001656,68085.0,68084.0,0.25451108]
[1729236958686,0.001656,68085.0,68084.0,0.40138808]
[1729236958946,0.148531,68085.0,68084.0,0.25351108]
[1729236959376,0.001656,68085.0,68084.0,0.25651108]
[1729236959924,0.148531,68085.0,68084.0,0.16101108]
[1729236960176,0.148531,68085.0,68084.0,0.069754]
[1729236960414,0.152531,68085.0,68084.0,0.05007778]
[1729236960655,0.152531,68085.0,68084.0,0.05763486]
[1729236960890,0.149531,68085.0,68084.0,0.04707778]
[1729236961116,0.002656,68085.0,68084.0,0.04707778]
[1729236961354,0.152531,68085.0,68084.0,0.04707778]
[1729236961564,0.008656,68085.0,68084.0,0.05763486]
[1729236961775,0.008656,68085.0,68084.0,0.08230575]
[1729236962005,0.008656,68085.0,68084.0,0.05763486]
[1729236962678,0.004656,68085.0,68084.0,0.04707778]
[1729236962904,0.004656,68085.0,68084.0,0.05763486]
[1729236963137,0.008656,68085.0,68084.0,0.05763486]
[1729236963406,0.008656,68085.0,68084.0,0.08230784]
[1729236963698,0.004656,68085.0,68084.0,0.08230784]
[1729236963927,0.002656,68085.0,68084.0,0.08230784]
[1729236964870,0.149531,68085.0,68084.0,0.05846286]
[1729236965095,0.149531,68085.0,68084.0,0.04346286]
[1729236965322,0.56380719,68085.0,68084.0,0.03290578]
[1729236965574,0.56380719,68085.0,68084.0,0.01816554]
[1729236966071,0.56280719,68085.0,68084.0,0.005828]
[1729236966288,0.44144254,68085.0,68084.0,0.01816526]
[1729236966518,0.39849015,68085.0,68084.0,0.01816526]
[1729236967720,0.56082632,68085.0,68084.0,0.01816526]
[1729236968200,0.41186717,68085.0,68084.0,0.01816526]
[1729236968460,0.41186717,68085.0,68084.0,0.04790462]
[1729236968915,0.4558503,68085.0,68084.0,0.05845002]
[1729236969605,0.62116734,68085.0,68084.0,0.04345002]
[1729236969844,0.62116734,68085.0,68084.0,0.01316587]
[1729236970112,0.86602649,68085.0,68084.0,0.01316587]
[1729236970820,0.94242649,68085.0,68084.0,0.01316587]
[1729236971568,1.09138564,68085.0,68084.0,0.01316587]
[1729236971827,1.09338564,68085.0,68084.0,0.000828]
[1729236972081,1.11638564,68085.0,68084.0,0.000828]
[1729236972329,1.28170268,68085.0,68084.0,0.000828]
[1729236972785,1.12138564,68085.0,68084.0,0.000828]
[1729236973525,1.12438564,68085.0,68084.0,0.001828]
[1729236973989,1.12138564,68085.0,68084.0,0.000828]
[1729236974184,1.12338564,68085.0,68084.0,0.001828]
[1729236974447,1.12138564,68085.0,68084.0,0.001828]
[1729236974701,0.77910945,68085.0,68084.0,0.001828]
[1729236974977,0.94942649,68085.0,68084.0,0.002828]
[1729236975233,0.95142649,68085.0,68084.0,0.002828]
[1729236975693,0.96942649,68085.0,68084.0,0.001828]
[1729236975917,0.97442649,68085.0,68084.0,0.001828]
[1729236976159,0.97242649,68085.0,68084.0,0.001828]
[1729236976423,0.94442649,68085.0,68084.0,0.001828]
[1729236976654,0.94142649,68085.0,68084.0,0.000828]
[1729236976882,0.94342649,68085.0,68084.0,0.000828]
[1729236977112,0.94642649,68085.0,68084.0,0.001828]
[1729236977343,0.94342649,68085.0,68084.0,0.000828]
[1729236977570,1.12338564,68085.0,68084.0,0.001828]
[1729236977758,1.12838564,68085.0,68084.0,0.002828]
[1729236977997,1.12538564,68085.0,68084.0,0.001828]
[1729236978224,1.12838564,68085.0,68084.0,0.002828]
[1729236978648,1.12038564,68085.0,68084.0,0.000828]
[1729236978871,1.11838564,68085.0,68084.0,0.000828]
[1729236979094,0.97642649,68085.0,68084.0,0.001828]
[1729236979315,1.27351964,68085.0,68084.0,0.001828]
[1729236979528,1.1082026,68085.0,68084.0,0.001828]
[1729236979783,1.1032026,68085.0,68084.0,0.000828]
[1729236979973,1.1062026,68085.0,68084.0,0.001828]
[1729236980204,1.0992026,68085.0,68084.0,0.001828]
[1729236980456,1.0218026,68085.0,68084.0,0.000828]
[1729236980637,1.0248026,68085.0,68084.0,0.001828]
[1729236981256,1.0298026,68085.0,68084.0,0.002828]
[1729236981435,1.0268026,68085.0,68084.0,0.001828]
[1729236981911,1.0298026,68085.0,68084.0,0.002828]
[1729236982308,0.8234833,68085.0,68084.0,0.002828]
[1729236982770,0.69170719,68085.0,68084.0,0.002828]
[1729236982948,0.68870719,68085.0,68084.0,0.001828]
[1729236983315,0.69170719,68085.0,68084.0,0.002828]
[1729236991768,0.68970719,68085.0,68084.0,0.002828]
[1729236993933,0.66670719,68085.0,68084.0,0.002828]
[1729236994104,0.67170719,68085.0,68084.0,0.002828]
[1729236995411,0.57580719,68085.0,68084.0,0.002828]
[1729236995619,0.40549015,68085.0,68084.0,0.002828]
[1729236996029,0.39749015,68085.0,68084.0,0.000828]
[1729236996443,0.40549015,68085.0,68084.0,0.002828]
[1729236997255,0.40249015,68085.0,68084.0,0.001828]
[1729236997768,0.39749015,68085.0,68084.0,0.000828]
[1729236997953,0.39749015,68085.0,68084.0,0.001828]
[1729236998189,0.40549015,68085.0,68084.0,0.002828]
[1729236998427,0.56758958,68085.0,68084.0,0.002828]
[1729236998627,0.56258958,68085.0,68084.0,0.001828]
[1729236998758,0.56758958,68085.0,68084.0,0.002828]
[1729236999323,0.56758958,68085.0,68084.0,0.01518682]
[1729236999526,0.56458958,68085.0,68084.0,0.01418682]
[1729236999926,0.56458958,68085.0,68084.0,0.01518685]
[1729236999927,0.56758958,68085.0,68084.0,0.01518685]
[1729237000140,0.56758958,68085.0,68084.0,0.01418685]
[1729237000401,0.56458958,68085.0,68084.0,0.001828]
[1729237000585,0.56758958,68085.0,68084.0,0.002828]
[1729237000800,0.56258958,68085.0,68084.0,0.01318954]
[1729237001199,0.57058958,68085.0,68084.0,0.01518954]
[1729237001405,0.56758958,68085.0,68084.0,0.01418954]
[1729237001748,0.56258958,68085.0,68084.0,0.01318954]
[1729237001974,0.56758958,68085.0,68084.0,0.01418954]
[1729237002605,0.56258958,68085.0,68084.0,0.01318954]
[1729237002838,0.57058958,68085.0,68084.0,0.01518954]
[1729237003054,0.56458958,68085.0,68084.0,0.01418954]
[1729237003487,0.56758958,68085.0,68084.0,0.01518954]
[1729237003699,0.56758958,68085.0,68084.0,0.01418954]
[1729237003921,0.57058958,68085.0,68084.0,0.01518954]
[1729237004151,0.56558958,68085.0,68084.0,0.01418954]
[1729237004398,0.56558958,68085.0,68084.0,0.01518954]
[1729237004638,0.56558958,68085.0,68084.0,0.002828]
[1729237004639,0.57058958,68085.0,68084.0,0.002828]
[1729237004845,0.57058958,68085.0,68084.0,0.01418774]
[1729237005047,0.56558958,68085.0,68084.0,0.01418774]
[1729237005253,0.57058958,68085.0,68084.0,0.01518774]
[1729237005914,0.56558958,68085.0,68084.0,0.01418774]
[1729237006331,0.55958958,68085.0,68084.0,0.000828]
[1729237006539,0.56258958,68085.0,68084.0,0.001828]
[1729237007177,0.56258958,68085.0,68084.0,0.01418609]
[1729237007389,0.56758958,68085.0,68084.0,0.002828]
[1729237009242,0.56758958,68085.0,68084.0,0.01518504]
[1729237009243,0.56777366,68085.0,68084.0,0.01518504]
[1729237010351,0.69966121,68085.0,68084.0,0.002828]
[1729237011186,0.56777366,68085.0,68084.0,0.002828]
[1729237011829,0.682109,68085.0,68084.0,0.002828]
[1729237012661,0.682109,68085.0,68084.0,0.001828]
[1729237012877,0.679109,68085.0,68084.0,0.001828]
[1729237013087,0.682109,68085.0,68084.0,0.002828]
[1729237013530,0.677109,68085.0,68084.0,0.001828]
[1729237013962,0.682109,68085.0,68084.0,0.002828]
[1729237015025,0.62794773,68085.0,68082.0,0.0001001]
[1729237015228,0.246879,68083.0,68082.0,0.0001001]
[1729237015481,0.55812166,68083.0,68082.0,0.0001001]
[1729237015620,0.55828068,68083.0,68082.0,0.0001001]
[1729237016225,0.55828068,68083.0,68082.0,0.0011001]
[1729237016429,0.55828068,68083.0,68082.0,0.0001001]
[1729237016850,0.56128068,68083.0,68082.0,0.0011001]
[1729237017443,0.56128068,68083.0,68082.0,0.0021001]
[1729237017867,0.56128068,68083.0,68082.0,0.0011001]
[1729237018339,0.56728068,68083.0,68082.0,0.0021001]
[1729237018547,0.72617991,68083.0,68082.0,0.002]
[1729237018758,0.8531349,68083.0,68082.0,0.002]
[1729237019178,0.70461602,68083.0,68082.0,0.002]
[1729237019826,0.85314472,68083.0,68082.0,0.002]
[1729237020056,1.21976183,68083.0,68082.0,0.002]
[1729237021827,1.07123313,68083.0,68082.0,0.002]
[1729237022406,0.90477337,68083.0,68082.0,0.002]
[1729237022630,0.90477337,68083.0,68082.0,0.002828]
[1729237023208,0.75627733,68083.0,68082.0,0.002828]
[1729237023483,0.75624402,68083.0,68082.0,0.002828]
[1729237023719,0.56724737,68083.0,68082.0,0.002828]
[1729237023936,0.73324402,68083.0,68082.0,0.002828]
[1729237024988,0.79963184,68083.0,68082.0,0.002828]
[1729237025410,0.73324402,68083.0,68082.0,0.002828]
[1729237025836,0.88173245,68083.0,68082.0,0.002828]
[1729237026055,1.1378291,68083.0,68082.0,0.002828]
[1729237026337,1.01234067,68083.0,68082.0,0.002828]
[1729237026477,1.01734067,68083.0,68082.0,0.002828]
[1729237026710,1.16629982,68083.0,68082.0,0.002828]
[1729237027987,1.16633835,68083.0,68082.0,0.002828]
[1729237030006,1.16133835,68083.0,68082.0,0.002828]
[1729237030216,1.16833835,68083.0,68082.0,0.002828]
[1729237030441,1.24663835,68083.0,68082.0,0.002828]
[1729237030646,0.51378465,68079.0,68078.0,0.000828]
[1729237030862,0.92519155,68079.0,68078.0,0.000828]
[1729237031097,0.92719155,68079.0,68078.0,0.000828]
[1729237031306,0.92519155,68079.0,68078.0,0.000828]
[1729237033485,0.93919155,68079.0,68078.0,0.001828]
[1729237033911,1.07364811,68079.0,68078.0,0.000828]
[1729237034340,1.10064811,68079.0,68078.0,0.001828]
[1729237034561,1.08764811,68079.0,68078.0,0.000828]
[1729237034771,1.07364811,68079.0,68078.0,0.000828]
[1729237035039,1.09897972,68079.0,68078.0,0.000828]
[1729237036180,1.11197972,68079.0,68078.0,0.001828]
[1729237036398,0.78707541,68079.0,68078.0,0.001828]
[1729237036603,1.09781567,68079.0,68078.0,0.002828]
[1729237036833,1.03351567,68079.0,68078.0,0.002828]
[1729237037250,1.01951567,68079.0,68078.0,0.001828]
[1729237037469,0.88510241,68079.0,68078.0,0.002828]
[1729237038387,0.76750241,68079.0,68078.0,0.002828]
[1729237038599,0.76250241,68079.0,68078.0,0.002828]
[1729237039993,0.71088077,68079.0,68078.0,0.002828]
[1729237041114,0.7108441,68079.0,68078.0,0.002828]
[1729237044406,0.48513748,68079.0,68078.0,0.082228]
[1729237044632,0.46807697,68079.0,68078.0,0.09128526]
[1729237044878,0.33617833,68079.0,68078.0,0.09128526]
[1729237045104,0.33617833,68079.0,68078.0,0.11105614]
[1729237045353,0.42412522,68079.0,68078.0,0.09128526]
[1729237045579,0.42412522,68079.0,68078.0,0.21625248]
[1729237045580,0.32317833,68079.0,68078.0,0.21625248]
[1729237045806,0.05797262,68079.0,68078.0,0.22398447]
[1729237046067,0.08794227,68083.0,68078.0,0.22398447]
[1729237046068,0.04397262,68083.0,68078.0,0.3955834]
[1729237046292,0.001656,68084.0,68083.0,0.1086]
[1729237046586,0.001656,68084.0,68083.0,0.14072107]
[1729237046825,0.148533,68084.0,68083.0,0.14072107]
[1729237047058,0.19250562,68084.0,68083.0,0.14072107]
[1729237047302,0.29749215,68084.0,68083.0,0.02235419]
[1729237047568,0.59737655,68084.0,68083.0,0.01735419]
[1729237047812,0.246883,68081.0,68080.0,0.0827]
[1729237048049,0.8338915,68081.0,68080.0,0.0877]
[1729237048506,0.72399647,68081.0,68080.0,0.0877]
[1729237049242,0.246888,68079.0,68078.0,0.000828]
[1729237049461,0.55813915,68079.0,68078.0,0.000828]
[1729237050654,0.55813915,68079.0,68078.0,0.001828]
[1729237050900,0.56913915,68079.0,68078.0,0.001828]
[1729237051149,0.7300983,68079.0,68078.0,0.002828]
[1729237051918,0.7530983,68079.0,68078.0,0.002828]
[1729237052148,0.7550983,68079.0,68078.0,0.002828]
[1729237052375,0.7530983,68079.0,68078.0,0.002828]
[1729237052612,0.60413915,68079.0,68078.0,0.002828]
[1729237053925,0.58113915,68079.0,68078.0,0.002828]
[1729237059138,0.58279515,68079.0,68078.0,0.002828]
[1729237059571,0.58279515,68079.0,68071.0,0.005528]
[1729237059572,0.41276532,68072.0,68071.0,0.005528]
[1729237059781,0.72401647,68072.0,68071.0,0.005528]
[1729237060884,0.72901647,68072.0,68071.0,0.005528]
[1729237062252,0.73301647,68072.0,68071.0,0.005528]
[1729237062675,0.74430985,68072.0,68071.0,0.005528]
[1729237063289,0.73301647,68072.0,68071.0,0.005528]
[1729237064120,0.73303549,68072.0,68071.0,0.005528]
[1729237064740,0.56717317,68072.0,68071.0,0.005528]
[1729237065154,0.73303549,68072.0,68071.0,0.005528]
[1729237067268,0.73303549,68072.0,68071.0,0.000528]
[1729237067471,0.73303549,68072.0,68071.0,0.005528]
[1729237067858,0.68154675,68072.0,68071.0,0.005528]
[1729237068979,0.68155325,68072.0,68071.0,0.005528]
[1729237070311,0.56717967,68072.0,68071.0,0.005528]
[1729237072841,0.56717967,68072.0,68071.0,0.000528]
[1729237073037,0.56717967,68072.0,68071.0,0.005528]
[1729237077379,0.56717967,68072.0,68071.0,0.01789159]
[1729237078462,0.56727296,68072.0,68071.0,0.01789159]
[1729237080834,0.56727296,68072.0,68071.0,0.01289159]
[1729237081085,0.56727296,68072.0,68071.0,0.01789159]
[1729237083944,0.56727296,68072.0,68071.0,0.01289159]
[1729237084216,0.56727296,68072.0,68071.0,0.005528]
[1729237084405,0.56727296,68072.0,68071.0,0.01790292]
[1729237086411,0.56727494,68072.0,68071.0,0.01790292]
[1729237086620,0.69926756,68072.0,68071.0,0.01790292]
[1729237087267,1.01036362,68072.0,68071.0,0.01790292]
[1729237087509,0.96260029,68072.0,68071.0,0.01790292]
[1729237087707,0.68164852,68072.0,68071.0,0.01790292]
[1729237087915,0.81364114,68072.0,68071.0,0.01790292]
[1729237088119,0.26128758,68067.0,68066.0,0.000828]
[1729237088320,0.26128758,68067.0,68066.0,0.02062893]
[1729237088321,0.57265952,68067.0,68066.0,0.02062893]
[1729237088533,0.68263797,68067.0,68066.0,0.03049533]
[1729237088973,0.57265952,68067.0,68066.0,0.03049533]
[1729237089214,0.30932679,68067.0,68066.0,0.04049533]
[1729237089423,0.41930557,68067.0,68066.0,0.13299533]
[1729237089629,0.41930557,68067.0,68066.0,0.12312893]
[1729237090770,0.42530557,68067.0,68066.0,0.12312893]
[1729237090984,0.42523147,68067.0,68066.0,0.12312893]
[1729237091203,0.41923147,68067.0,68066.0,0.12212893]
[1729237091687,0.30927363,68067.0,68066.0,0.12212893]
[1729237092145,0.31627363,68067.0,68066.0,0.12312893]
[1729237092370,0.31627363,68067.0,68066.0,0.011828]
[1729237092609,0.31527363,68067.0,68066.0,0.0316293]
[1729237092842,0.32027363,68067.0,68066.0,0.0316293]
[1729237095086,0.56923278,68067.0,68066.0,0.0216293]
[1729237095351,0.56923278,68067.0,68066.0,0.001828]
[1729237095597,0.56949768,68067.0,68066.0,0.001828]
[1729237098004,0.71818297,68067.0,68066.0,0.001828]
[1729237098480,0.56949768,68067.0,68066.0,0.001828]
[1729237099240,0.58081824,68067.0,68066.0,0.001828]
[1729237099496,0.56949768,68067.0,68066.0,0.001828]
[1729237099738,0.56949768,68067.0,68066.0,0.087128]
[1729237099739,0.42053853,68067.0,68066.0,0.087128]
[1729237099977,0.32053853,68067.0,68066.0,0.10691117]
[1729237100198,0.32053853,68067.0,68066.0,0.11927547]
[1729237100199,0.32044438,68067.0,68066.0,0.11927547]
[1729237100427,0.32044438,68067.0,68066.0,0.12915094]
[1729237100679,0.32044438,68067.0,68066.0,0.087128]
[1729237100897,0.32044438,68067.0,68066.0,0.11927471]
[1729237104897,0.32043536,68067.0,68066.0,0.1192411]
[1729237105798,0.32043536,68067.0,68066.0,0.09947913]
[1729237106440,0.32043536,68067.0,68066.0,0.11924087]
[1729237106932,0.157914,68067.0,68066.0,0.11924087]
[1729237107153,0.3204401,68067.0,68066.0,0.11924087]
[1729237108810,0.3204401,68067.0,68066.0,0.1192409]
[1729237109427,0.3204401,68067.0,68066.0,0.1142409]
[1729237109628,0.3204401,68067.0,68066.0,0.1192409]
[1729237110472,0.157914,68067.0,68066.0,0.1192409]
[1729237112204,0.157914,68067.0,68066.0,0.15385802]
[1729237112401,0.157914,68067.0,68066.0,0.1439443]
[1729237112611,0.157914,68067.0,68066.0,0.15385802]
[1729237113307,0.157914,68067.0,68066.0,0.12915462]
[1729237114353,0.32046983,68067.0,68066.0,0.12915462]
[1729237114792,0.32046983,68067.0,68066.0,0.1192409]
[1729237115448,0.32046983,68067.0,68066.0,0.11898772]
[1729237116101,0.32046983,68067.0,68066.0,0.04368772]
[1729237120661,0.32046983,68067.0,68066.0,0.0436843]
[1729237122070,0.32043126,68067.0,68066.0,0.0436843]
[1729237124276,0.32043126,68067.0,68066.0,0.01157482]
[1729237124415,0.32043126,68067.0,68066.0,0.04368369]
[1729237125081,0.32043126,68067.0,68066.0,0.02392432]
[1729237129269,0.32043126,68067.0,68066.0,0.04369568]
[1729237132176,0.32043126,68067.0,68066.0,0.04370202]
[1729237132504,0.32043126,68067.0,68066.0,0.01157482]
[1729237132688,0.32043126,68067.0,68066.0,0.04370184]
[1729237134870,0.28521434,68067.0,68066.0,0.24421596]
[1729237135107,0.43212834,68067.0,68066.0,0.24421596]
[1729237135360,0.32208726,68067.0,68066.0,0.25413446]
[1729237135852,0.32208726,68067.0,68066.0,0.24421596]
[1729237136090,0.32208726,68067.0,68066.0,0.25413446]
[1729237136578,0.32204685,68067.0,68066.0,0.25413446]
[1729237137519,0.32204685,68067.0,68066.0,0.24421596]
[1729237139041,0.32204685,68067.0,68066.0,0.25413446]
[1729237139475,0.32204685,68067.0,68066.0,0.24421596]
[1729237139900,0.32204685,68067.0,68066.0,0.31950184]
[1729237140114,0.32204685,68067.0,68066.0,0.35413265]
[1729237140322,0.32204685,68067.0,68066.0,0.23412034]
[1729237140749,0.3220258,68067.0,68066.0,0.23412034]
[1729237142312,0.3220258,68067.0,68066.0,0.23412157]
[1729237142678,0.3220258,68067.0,68066.0,0.15362157]
[1729237143542,0.3220258,68067.0,68066.0,0.14370307]
[1729237144628,0.45405337,68067.0,68066.0,0.14370307]
[1729237145541,0.45405337,68067.0,68066.0,0.10370307]
[1729237146032,0.66658495,68067.0,68066.0,0.07893177]
[1729237147527,0.66658495,68067.0,68066.0,0.06657482]
[1729237147708,0.66658495,68067.0,68066.0,0.06740282]
[1729237148613,0.66658495,68067.0,68066.0,0.07975904]
[1729237149041,0.66653875,68067.0,68066.0,0.07975904]
[1729237150962,0.66653875,68067.0,68066.0,0.06740282]
[1729237152792,0.57093875,68067.0,68066.0,0.06740282]
[1729237153615,0.57101166,68067.0,68066.0,0.07975821]
[1729237155059,0.57101166,68067.0,68066.0,0.06740282]
[1729237156821,0.56001166,68067.0,68066.0,0.06740282]
[1729237157137,0.58101166,68067.0,68066.0,0.06940282]
[1729237157361,0.57101166,68067.0,68066.0,0.06840282]
[1729237157567,0.56001166,68067.0,68066.0,0.06740282]
[1729237157792,0.57001166,68067.0,68066.0,0.06840282]
[1729237158003,0.58101166,68067.0,68066.0,0.06940282]
[1729237158211,0.58102805,68067.0,68066.0,0.06940282]
[1729237158577,0.69540163,68067.0,68066.0,0.06940282]